Cogmind - Beta 17 @@@ ROGUE MODE // 2026.07.12 @ 22:33:04 Player: k1ll3rb0t Result: Destroyed by Y-45 Defender with Beam Rifle Performance ------------- Evolutions (0) 0 Regions Visited (1) 200 Robots Destroyed (12) 60 Value Destroyed (183) 183 Prototype IDs (1) 20 Alien Tech Used (0) 0 Bonus (8000) 8000 TOTAL SCORE: 8463 Bonus ------- Prayed to X0-1V1 5000 Major X0-1V1 Interference 3000 Cogmind --------- Core Integrity 0/150 Matter 122/150 Energy 1271/1300 System Corruption 13% Temperature Cool (-657) Movement Rolling (115) Ox1 Location -10/Materials Parts ------- > --- POWER (1) -------- (None) > --- PROPULSION (2) --- Compact Wheel > --- UTILITY (3) ------ Improved Heat Sink (fused) Large Storage Unit X0-1V1's Piety Tracker > --- WEAPON (1) ------- (None) > --- INVENTORY (15) --- Ion Engine Light Treads Light Treads Light Treads Light Treads Aluminum Leg Cargo Storage Unit Structural Scanner Assault Rifle Light Assault Rifle Light Assault Rifle Shotgun Maul Peak State ------------ > --- POWER ------------ Ion Engine > --- PROPULSION ------- Wheel Compact Wheel > --- UTILITY ---------- Improved Heat Sink Large Storage Unit X0-1V1's Piety Tracker > --- WEAPON ----------- Maul > --- INVENTORY -------- Ion Engine Light Treads Light Treads Light Treads Light Treads Aluminum Leg Compact Wheel Structural Scanner Assault Rifle Light Assault Rifle Light Assault Rifle [Rating: 23] Favorites ----------- Power Light Ion Engine Engine Light Ion Engine Propulsion Aluminum Leg Leg Aluminum Leg Wheel Compact Wheel Utility Large Storage Unit Device Improved Heat Sink Storage Large Storage Unit Weapon Assault Rifle Ballistic Gun Assault Rifle Impact Weapon Maul Build | -11 -10 ------- Run | Yrd Mat Slots Evolved . | . . Power . | . . Propulsion . | . . Utility . | . . Weapon . | . . Parts Attached 18 | 6 12 Power 3 | 1 2 Engine 3 | 1 2 Core . | . . Reactor . | . . Propulsion 6 | 2 4 Treads . | . . Leg 2 | 2 . Wheel 4 | . 4 Hover . | . . Flight . | . . Utility 5 | 1 4 Device 2 | . 2 Storage 3 | 1 2 Processor . | . . Hackware . | . . Protection . | . . Artifact . | . . Weapon 4 | 2 2 Energy Gun . | . . Energy Cannon . | . . Ballistic Gun 4 | 2 2 Ballistic Cannon . | . . Launcher . | . . Special Weapon . | . . Impact Weapon . | . . Slashing Weapon . | . . Piercing Weapon . | . . Special Melee Weapon . | . . Unidentified Prototypes 1 | . 1 Parts Lost 6 | . 6 Power 2 | . 2 Propulsion 2 | . 2 Utility . | . . Weapon 2 | . 2 Highest Loss Streak 4 | . 4 To Critical Strikes 1 | . 1 Average Backups 12 | 2 12 Power 1 | . 1 Propulsion 7 | 1 7 Utility . | . . Weapon 2 | . 2 Tool/Special . | . . Unused Backups 10 | . 10 Power 1 | . 1 Propulsion 4 | . 4 Utility 2 | . 2 Weapon 3 | . 3 Tool/Special . | . . Average Slot Usage (%) 95 | . 95 Engine 13 | . 13 Leg 23 | . 23 Wheel 3 | . 3 Device 12 | . 12 Storage 14 | . 14 Ballistic Gun 26 | . 26 Peak Build Rating 23 | 6 23 Average Rating 13 | 4 13 On Entrance 3 | . 6 Avg Prop Armor Cover (%) . | . . Naked Turns . | . . Heaviest Build 30 | 12 30 Greatest Support 26 | 20 26 Greatest Overweight (x) 9 | 1 9 Average Overweight (x) . | . 1 Largest Inventory Capacity 15 | 8 15 Average Capacity 14 | 7 14 Most Carried 15 | 6 15 Average Carried 12 | 2 12 Final Capacity 15 | 8 15 Final Carried 14 | 6 14 Class Distribution -------------------- 100% | Mutant Dominant Class ---------------- Mutant | -10/Materials Resources | -11 -10 ----------- Run | Yrd Mat Matter Collected 512 | 210 302 Remotely . | . . Salvage Created 252 | . 252 Parts 22 | . 22 Haulers Intercepted 1 | . 1 Recyclers Shooed 2 | . 2 Parts Field Recycled . | . . Retrieved Matter . | . . Parts Self-Destructed . | . . Prevented . | . . Parts Restored . | . . Kills | -11 -10 ------- Run | Yrd Mat Combat Hostiles Destroyed 8 | . 8 Guns 8 | . 8 Classes Destroyed 5 | . 5 Tunneler 2 | . 2 Hauler 1 | . 1 Watcher 1 | . 1 Swarmer 6 | . 6 Grunt 2 | . 2 Best Kill Streak 3 | . 3 Combat Bots Only 3 | . 3 Max Kills in Single Turn 1 | . 1 Gunslinging . | . . Exploded . | . . Melee . | . . Uniques/NPCs Destroyed . | . . Combat | -11 -10 -------- Run | Yrd Mat Hostile Shots Fired 138 | . 138 Missed 47 | . 47 Hits 91 | . 91 Projectile 91 | . 91 Critical Strikes 4 | . 4 Damage Taken 913 | . 913 Core 239 | . 239 Absorbed by Shields . | . . Ignored by Resistances 157 | . 157 Core Remaining (%) 100 | 100 . Volleys Fired 35 | . 35 Largest 2 | . 2 Hottest 40 | . 40 Shots Fired 65 | . 65 Gun 65 | . 65 Cannon . | . . Launcher . | . . Special . | . . Kinetic 65 | . 65 Thermal . | . . Explosive . | . . Electromagnetic . | . . Robot Hit Streak 8 | . 8 Robot Miss Streak 4 | . 4 Penetration Max . | . . Secondary Targets 1 | . 1 Max Gunslinging Chain 1 | . 1 Shots Hit Robots 39 | . 39 Core Hits 18 | . 18 Critical Kills . | . . Critical Parts Destroyed . | . . Critical Strikes . | . . Melee Attacks . | . . Impact . | . . Slashing . | . . Piercing . | . . Sneak Attacks . | . . Combat Hostiles . | . . Follow-up Attacks . | . . Damage Inflicted 548 | . 548 Guns 488 | . 488 Cannons . | . . Explosions 60 | . 60 Melee . | . . Ramming . | . . Kinetic 488 | . 488 Thermal 60 | . 60 Explosive . | . . Electromagnetic . | . . Impact . | . . Slashing . | . . Piercing . | . . Highest Corruption 16 | . 16 Average Corruption 14 | . 14 Corruption Purged . | . . Corruption Blocked . | . . Effects 3 | . 3 Matter Fused 1 | . 1 Heat Flow Errors 1 | . 1 Data Loss (major) 1 | . 1 Overload Shots . | . . Overflow Damage . | . . Projectiles . | . . Explosions . | . . Melee . | . . Knockbacks . | . . Impact . | . . Kinetic . | . . Secondary . | . . Self-Inflicted Damage . | . . Shots . | . . Rammed . | . . Targets Rammed . | . . Kicked . | . . Crushed . | . . Highest Temperature 244 | . 244 Average Temperature 51 | . 51 Received Heat Transfer 431 | . 431 Siege Activations . | . . Martial Activations . | . . Shielding Activations . | . . Robots Disrupted . | . . Combat Hostiles . | . . Robots Corrupted . | . . Combat Hostiles . | . . Parts Fried . | . . Impact Corruptions . | . . Robots Melted . | . . Combat Hostiles . | . . Parts Melted . | . . Heat Transferred 50 | . 50 Parts Sabotaged . | . . Parts Stolen . | . . Parts Stripped . | . . Power Chain Reactions . | . . Alert | -11 -10 ------- Run | Yrd Mat Maximum Alert Level 3 | . 3 Low Security (%) 81 | 100 80 Level 1 8 | . 9 Level 2 5 | . 5 Level 3 4 | . 4 Level 4 . | . . Level 5 . | . . High Security . | . . Max Security . | . . Peak Influence 848 | . 848 Initial . | . . Average 122 | . 128 Influence Increases 1169 | . 1169 Destroy 0b10 Robot/C 160 | . 160 Destroy 0b10 Robot/NC 20 | . 20 Destroy Leader 34 | . 34 Successful Hack 30 | . 30 Select Force Hacks 30 | . 30 Disable Machine 15 | . 15 Destroy Structure 11 | . 11 Lose Combat Pursuer 15 | . 15 Miscellaneous 854 | . 854 Influence Decreases 375 | . 375 Time Decay 315 | . 315 Lost Part 60 | . 60 Squads Dispatched 2 | . 2 Investigation 1 | . 1 Extermination . | . . Reinforcement . | . . Assault 1 | . 1 Garrison . | . . Intercept . | . . Searches Triggered . | . . Construction Impeded . | . . Haulers Reinforced . | . . Active Scanning Responses . | . . Cargo Convoy Interrupts . | . . Stealth | -11 -10 --------- Run | Yrd Mat Distress Signals . | . . Communications Jammed . | . . Distress Signals . | . . Times Spotted 30 | . 30 Peak Tracking Total 7 | . 7 Tactical Retreats 1 | . 1 Traps | -11 -10 ------- Run | Yrd Mat Traps Triggered . | . . Indirectly . | . . Trap Hack Attempts . | . . Triggered . | . . Disarmed . | . . Reprogrammed . | . . Reused . | . . Traps Extracted . | . . Installed . | . . Triggered . | . . Machines | -11 -10 ---------- Run | Yrd Mat Machines Disabled 1 | . 1 Max in Single Turn 1 | . 1 Machines Repaired . | . . Machines Dismantled . | . . Machines Sabotaged . | . . Overloaded Fab Kills . | . . Hacking | -11 -10 --------- Run | Yrd Mat Machines Accessed 7 | . 7 Terminals 6 | . 6 Fabricators . | . . Repair Stations . | . . Recycling Units 1 | . 1 Scanalyzers . | . . Garrison Access . | . . Total Hacks 16 | . 16 Successful 6 | . 6 Failed 10 | . 10 Catastrophic 2 | . 2 Database Lockouts . | . . Manual 12 | . 12 Terminals 15 | . 15 Fabricators . | . . Repair Stations . | . . Recycling Units 1 | . 1 Scanalyzers . | . . Garrison Access . | . . Terminal Hacks 4 | . 4 Part Schematic 1 | . 1 Robot Analysis 1 | . 1 Locate Traps 1 | . 1 Registered Components 1 | . 1 Fabricator Hacks . | . . Repair Station Hacks . | . . Recycling Unit Hacks . | . . Scanalyzer . | . . Garrison Access Hacks . | . . Unauthorized Hacks 2 | . 2 Terminals 1 | . 1 Botnet 1 | . 1 Fabricators . | . . Repair Stations . | . . Recycling Units 1 | . 1 Tunnel 1 | . 1 Scanalyzers . | . . Garrison Access . | . . Data Cores Recovered . | . . Used . | . . Hacking Detections 4 | . 4 Full Trace Events . | . . Feedback Events . | . . Feedback Blocked . | . . Robot Schematics Acquired . | . . Robots Built . | . . Authchips . | . . Time . | . . Total Robot Build Rating . | . . Part Schematics Acquired 1 | . 1 Parts Built . | . . Authchips . | . . Time . | . . Total Part Build Rating . | . . Part Studies Acquired . | . . Parts Repaired . | . . Time . | . . Parts Recycled . | . . Recycled Matter . | . . Retrieved Matter . | . . Retrieved Components . | . . Parts Scanalyzed . | . . Part Schematics Acquired . | . . Parts Damaged . | . . Bothacking | -11 -10 ------------ Run | Yrd Mat Used RIF Installer . | . . Robots Hacked . | . . Non-combat . | . . Combat . | . . Robot Hacks Applied . | . . Relay Couplers Released . | . . Fabnet Peak Effective % . | . . Robots Rewired . | . . Allies Hacked . | . . Hacks Repelled . | . . Allies | -11 -10 -------- Run | Yrd Mat Total Allies . | . . Largest Group . | . . Highest-Rated Group . | . . Highest-Rated Ally . | . . Total Orders . | . . Ally Attacks . | . . Total Damage . | . . Kills . | . . Allies Corrupted . | . . Allies Melted . | . . X0-1V1 Amusement Gains 6 | . 6 Good Acts 15 | . 15 Bad Acts 37 | . 37 Intel | -11 -10 ------- Run | Yrd Mat Active Infowar (turns) . | . . Robot Analysis Total 1 | . 1 Derelict Logs Recovered . | . . Drone Launches . | . . Drone Recoveries . | . . Exploration | -11 -10 ------------- Run | Yrd Mat Turns Passed 1291 | 60 1231 Spaces Moved 648 | 42 606 Core 11 | 7 4 Treads . | . . Legs 532 | 35 497 Wheels 105 | . 105 Hover . | . . Flight . | . . Fastest Speed 50 | 50 90 Average Speed 169 | 109 173 Slowest Speed 500 | 120 500 Overloaded Moves . | . . Propulsion Burnouts . | . . Robots Hopped . | . . Potential Cave-ins 4 | . 4 Cave-ins Triggered . | . . Exploration Rate (%) 38 | 3 74 Regions Visited 1 Branch Regions . Pre-discovered Areas 1 | . 1 Known Exits Taken . | . . Unknown Exits Taken 1 | 1 . Scrap Searched . | . . Spaces Dug . | . . Terrain Destroyed 11 | . 11 Melee . | . . Projectile . | . . AOE 11 | . 11 Terrain Rammed . | . . Walls Destroyed . | . . Machines Disabled . | . . Actions | -11 -10 --------- Run | Yrd Mat Total 770 | 53 717 Wait 47 | . 47 Move 647 | 41 606 Hop . | . . Pick Up 16 | 6 10 Fast Attach 10 | 6 4 Attach 6 | . 6 Detach 1 | . 1 Swap 5 | . 5 Drop 3 | . 3 Fire 35 | . 35 Melee . | . . Ram . | . . Kick . | . . Crush . | . . Escape Stasis . | . . Rewire . | . . Trap . | . . Miscellaneous . | . . Route ------- -11/Scrapyard -10/Materials (discovered 4 exits: *Mat x2 / [*Min] / [*Sub]) History --------- Turn | Location | Event 5 | -11/Scrapyard | Discovered new exit (range 15) 61 | -11/Scrapyard | Entered Materials 144 | -10/Materials | Discovered new exit (range 11) 314 | -10/Materials | Build established: Mutant 393 | -10/Materials | Discovered new exit (range 9) 561 | -10/Materials | Derelicts attacked the area 755 | -10/Materials | Discovered new exit (range 10) 778 | -10/Materials | Prayed at D.C.S.S. Altar Unit 930 | -10/Materials | X0-1V1 activates XOMVISION 946 | -10/Materials | X0-1V1 added 0b10 threat records associated with you (minor) 1050 | -10/Materials | X0-1V1 foreshadows a heat wave 1052 | -10/Materials | X0-1V1 added 0b10 threat records associated with you (major) 1081 | -10/Materials | System corruption reached 10% 1098 | -10/Materials | X0-1V1 mutated your Propulsion slot to Utility slot 1105 | -10/Materials | TH resistance permanently improved by X0-1V1 (+10%; -100 max core) 1108 | -10/Materials | Identified exit to Materials 1108 | -10/Materials | X0-1V1 revealed exit location to -9/Materials 1116 | -10/Materials | X0-1V1 collapsed Materials access 1131 | -10/Materials | X0-1V1 announced a LAN party 1136 | -10/Materials | X0-1V1 vaporized surrounding terrain (radius 23) 1141 | -10/Materials | X0-1V1 sent you into danger 1168 | -10/Materials | X0-1V1 added 0b10 threat records associated with you (major) 1180 | -10/Materials | X0-1V1 sent hostile G-34 Mercenary (x5) 1189 | -10/Materials | X0-1V1 mutated your Weapon slot to Propulsion slot 1218 | -10/Materials | Ambient heat levels rising (+10) 1222 | -10/Materials | Core integrity fell below 50% 1227 | -10/Materials | X0-1V1 whisked you away to safety 1233 | -10/Materials | X0-1V1 added 0b10 threat records associated with you (considerable) 1256 | -10/Materials | Core integrity restored by X0-1V1 (+34) 1257 | -10/Materials | X0-1V1 activates XOMVISION 1260 | -10/Materials | Discovered exit to Materials (range 14) 1285 | -10/Materials | X0-1V1 upgraded hostiles (x2) 1287 | -10/Materials | Core integrity fell below 20% 1292 | -10/Materials | Destroyed by Y-45 Defender with Beam Rifle Last Messages --------------- Pulse Gun. G-34 Mercenary Sml. Laser replaced by Spread Laser. G-47 Trooper Particle Gun replaced by Pulse Rifle. 01283_ Wheel destroyed. 01284_ Com. Wheel destroyed. 01285_ Heat dissipation returns to normal. 01285_ X0-1V1 tips the scales in a new dimension. G-47 Trooper reshaped into more powerful Grunt. G-34 Mercenary reshaped into more powerful Grunt. 01285_ Critical hit (Burn: +37). 01286_ Ion Engine destroyed. 01286_ X0-1V1: "I know that drunk sailor look when I see it." 01289_ Critical hit (Destroy). 01289_ Shotgun destroyed. 01292_ X0-1V1: "It was about time." Map ----- +----------------------------------------------------+ | #????????????????????????????????? | | ####??????????????????????????????? | | !##?????????????????????????????? | | !#?????????????????????????????? | | #?????????????????????????????? | | !#?????????????????????????????? | | !#?????????????????????????????? | | !##?????????????????????????????? | | ####??????????????????????????????? | | #?????????????????????????????????? | | #????????????? ?????????????????? | | ####?????????# ?????????????????? | | #?????????# ?????????????????? | | #?????????+ #????????????????? | | #?????????# #????????????????? | | #?????????# +????????????????? | | #?????????# #????????????????? | | #?????????# #????????????????? | | #?????????# #????????????????? | | #?????????# #????????????????? | | #?????????# #????????????????? | | #?????????# #????????????????? | | ####?????????# #????????????????? | | ##???????????# #????????????????? | | ########+#### #############????? | | Y gg @ #????? | | g < #????? | | gY #????? | | ###+#########################????? | | ##? ????????????????????????????? | | ???"""????????????????????????????? | | ?? """ ???????????????????????????? | | ?? """ ???????????????????????????? | | ?# ??????????????????????????? | | ???###?#??????????????????????????? | | | | | | | | | | | | | | | | | | | | | | | | | | | | | | | +----------------------------------------------------+ Best States ------------- Heat Dissipation 39 Energy Generation 22 Energy Capacity 1450 Matter Stores 300 Matter Capacity 300 Sight Range 16 Terrain Scan Density 10 Resistance: TH 43 Evasion (%) 55 Item Schematics ----------------- Huge Storage Unit | -10/Materials | Hacked Robot Schematics ------------------ None Fabricated ------------ Nothing Repaired ---------- Nothing Studied --------- None Alien Tech Used ----------------- None Achievements -------------- None Challenges ------------ None Game ------ Seed HoverGravmagFirepult Manual? 0 Play Time 00:17:55 Cumulative 316.1 hours Start 2026.07.12 @ 19:23:19 End 2026.07.12 @ 22:33:04 Sessions 2 Manual Loads 0 Difficulty Rogue Special Mode None Game No. 82 Rogue 82 Adventurer 0 Explorer 0 Win Type - Total 7 Types 5/0/1/1/0/0/0/0/0/0 Lore% 71 Gallery% 65 Achievement% 56 Wizard Run 0 Options --------- Layout 1 ASCII 0 Keyboard 0 Movement Mouse Keybinds 0 Fullscreen 1 Font 32/SmallcapsGlow Map View 50x35 Zoom Use 0% Tactical HUD 1 Map Filters NONE Filters NONE Steam 1 RUN: ed83373f-7fed-45fd-9ada-dfa055d8101b